lending/lending_fUSD_20240124
["ID","MTS","AMOUNT","RATE_DAILY","PERIOD"]
[312640024,1706122347701,-674.93,0.00050684,31]
[312640025,1706122347710,-500.0,0.00050684,31]
[312640026,1706122347719,-754.8,0.00050684,31]
[312640027,1706122347729,-500.0,0.00050684,31]
[312640028,1706122347738,-994.52,0.00050684,31]
[312640029,1706122347748,-619.7,0.00050684,31]
[312640030,1706122347758,-1265.56,0.00050684,31]
[312640031,1706122347768,-500.0,0.00050684,31]
[312640032,1706122347778,-553.3,0.00050684,31]
[312640033,1706122347788,-697.79,0.00050684,31]
[312640034,1706122347798,-1070.96,0.00050684,31]
[312640035,1706122347808,-500.0,0.00050684,31]
[312640036,1706122347818,-1012.33,0.00050684,31]
[312640037,1706122347828,-1137.93,0.00050684,31]
[312640038,1706122347837,-876.45,0.00050684,31]
[312640039,1706122347848,-500.0,0.00050684,31]
[312640040,1706122347858,-715.02,0.00050684,31]
[312640041,1706122347868,-500.0,0.00050684,7]
[312640042,1706122347878,-500.0,0.00050684,31]
[312640043,1706122347887,-833.81,0.00050684,31]
[312640044,1706122347897,-500.0,0.00050684,31]
[312640045,1706122347907,-1061.9,0.00050684,31]
[312640046,1706122347918,-1257.58,0.00050684,31]
[312640047,1706122347927,-500.0,0.00050684,31]
[312640048,1706122347937,-500.0,0.00050684,31]
[312640049,1706122347946,-500.0,0.00050684,31]
[312640050,1706122347955,-642.76,0.00050684,31]
[312640051,1706122347965,-980.87,0.00050684,31]
[312640052,1706122347974,-2365.7,0.00050684,31]
[312640053,1706122347984,-500.0,0.00050684,31]
[312640054,1706122347993,-550.34,0.00050684,31]
[312640055,1706122348002,-500.0,0.00050684,31]
[312640056,1706122348011,-9651.62,0.00050684,5]
[312640057,1706122348020,-165.71350017,0.00050684,31]
[312640058,1706122348030,-317.06178412,0.00050684,31]
[312640059,1706122348039,-500.0,0.00050684,31]
[312640060,1706122348049,-1273.8,0.00050684,31]
[312640061,1706122348060,-516.0,0.00050684,31]
[312640062,1706122348069,-259.15,0.00050684,31]
[312640063,1706122348078,-500.0,0.00050684,31]
[312640064,1706122348087,-500.0,0.00050684,31]
[312640065,1706122348098,-848.97,0.00050684,31]
[312640066,1706122348107,-826.53,0.00050684,31]
[312640067,1706122348117,-500.0,0.00050684,31]
[312640068,1706122348127,-500.0,0.00050684,31]
[312640069,1706122348136,-500.0,0.00050684,31]
[312640070,1706122348146,-570.78,0.00050684,31]
[312640071,1706122348157,-750.28,0.00050684,31]
[312640072,1706122348167,-500.0,0.00050684,31]
[312640073,1706122348182,-647.3,0.00050684,31]
[312640074,1706122348192,-1277.6,0.00050684,31]
[312640075,1706122348203,-886.52,0.00050684,31]
[312640076,1706122348213,-500.0,0.00050684,31]
[312640077,1706122348366,-744.61,0.00050684,31]
[312640078,1706122348378,-6353.27,0.00050684,5]
[312640079,1706122348390,-688.18,0.00050684,31]
[312640080,1706122348400,-500.0,0.00050684,31]
[312640081,1706122348410,-500.0,0.00050684,31]
[312640082,1706122348420,-585.99,0.00050684,31]
[312640083,1706122348429,-500.0,0.00050684,31]
[312640084,1706122348440,-500.0,0.00050684,31]
[312640085,1706122348450,-500.0,0.00050684,31]
[312640086,1706122348459,-1311.12,0.00050684,31]
[312640087,1706122348469,-500.0,0.00050684,31]
[312640088,1706122348479,-500.0,0.00050684,31]
[312640089,1706122348489,-500.0,0.00050684,31]
[312640090,1706122348498,-635.69,0.00050684,31]
[312640091,1706122348507,-2747.11,0.00050684,31]
[312640092,1706122348516,-1064.36,0.00050684,31]
[312640093,1706122348526,-500.0,0.00050684,31]
[312640094,1706122348536,-988.82,0.00050684,31]
[312640095,1706122348545,-183.21921495,0.00050684,31]
[312640096,1706122348555,-336.97,0.00050684,31]
[312640097,1706122348565,-500.0,0.00050684,31]
[312640098,1706122348574,-500.0,0.00050684,31]
[312640099,1706122348583,-500.0,0.00050684,31]
[312640100,1706122348593,-506.02,0.00050684,31]
[312640101,1706122348605,-500.0,0.00050684,31]
[312640102,1706122348614,-500.0,0.00050684,31]
[312640103,1706122348623,-4014.55,0.00050684,31]
[312640104,1706122348633,-996.79,0.00050684,31]
[312640105,1706122348642,-500.0,0.00050684,31]
[312640106,1706122348652,-879.67,0.00050684,31]
[312640107,1706122348661,-500.0,0.00050684,31]
[312640108,1706122348671,-500.0,0.00050684,31]
[312640109,1706122348680,-556.81,0.00050684,31]
[312640110,1706122348690,-500.0,0.00050684,31]
[312640111,1706122348699,-1740.65,0.00050684,31]
[312640112,1706122348709,-1603.09,0.00050684,31]
[312640113,1706122348719,-722.88,0.00050684,31]
[312640114,1706122348730,-891.73,0.00050684,31]
[312640115,1706122348739,-1257.39,0.00050684,31]
[312640116,1706122348749,-500.0,0.00050684,31]
[312640117,1706122348759,-703.85,0.00050684,31]
[312640118,1706122348768,-500.0,0.00050684,31]
[312640119,1706122348778,-500.0,0.00050684,31]
[312640120,1706122348788,-534.53,0.00050684,31]
[312640121,1706122348798,-4733.77,0.00050684,31]
[312640122,1706122348809,-3077.84,0.00050684,31]
[312640123,1706122348818,-2216.62,0.00050684,31]
[312640124,1706122348827,-500.0,0.00050684,31]
[312640125,1706122348837,-654.54,0.00050684,31]
[312640126,1706122348848,-1335.18,0.00050684,31]
[312640127,1706122348858,-500.0,0.00050684,31]
[312640128,1706122348868,-820.02,0.00050684,31]
[312640129,1706122348877,-603.22,0.00050684,31]
[312640130,1706122348887,-4058.85,0.00050684,31]
[312640131,1706122348897,-193.31875197,0.00050684,31]
[312640132,1706122348906,-870.48,0.00050684,31]
[312640133,1706122348916,-500.0,0.00050684,30]
[312640134,1706122348925,-1196.3,0.00050684,31]
[312640135,1706122348935,-691.03,0.00050684,31]
[312640136,1706122348945,-500.0,0.00050684,31]
[312640137,1706122348954,-506.34,0.00050684,31]
[312640138,1706122348964,-500.0,0.00050684,31]
[312640139,1706122348973,-500.0,0.00050684,31]
[312640140,1706122348983,-1595.23,0.00050684,31]
[312640141,1706122348993,-9475.21,0.00050684,31]
[312640142,1706122349003,-2256.81,0.00050684,31]
[312640143,1706122349012,-500.0,0.00050684,31]
[312640144,1706122349022,-500.0,0.00050684,31]
[312640145,1706122349032,-500.0,0.00050684,31]
[312640146,1706122349042,-500.0,0.00050684,31]
[312640147,1706122349051,-504.15,0.00050684,31]
[312640148,1706122349061,-949.97,0.00050684,31]
[312640149,1706122349070,-2007.79,0.00050684,31]
[312640150,1706122349080,-760.02,0.00050684,31]
[312640151,1706122349089,-1753.67,0.00050684,2]
[312640152,1706122349099,-442.19868907,0.00050684,31]
[312640153,1706122349108,-960.34,0.00050684,31]
[312640154,1706122349117,-895.93,0.00050684,31]
[312640155,1706122349127,-500.0,0.00050684,31]
[312640156,1706122349137,-500.0,0.00050684,31]
[312640157,1706122349147,-500.0,0.00050684,31]
[312640158,1706122349156,-500.0,0.00050684,31]
[312640159,1706122349166,-9793.91,0.00050684,31]
[312640160,1706122349175,-630.07,0.00050684,31]
[312640161,1706122349185,-500.0,0.00050684,31]
[312640162,1706122349194,-1085.19,0.00050684,31]
[312640163,1706122349205,-733.81,0.00050684,31]
[312640164,1706122349214,-500.0,0.00050684,31]
[312640165,1706122349224,-500.0,0.00050684,31]
[312640166,1706122349233,-374.93949983,0.00050684,31]
[312640167,1706122349242,-822.62,0.00050684,31]
[312640168,1706122349251,-786.38,0.00050684,31]
[312640169,1706122349261,-5724.55,0.00050684,31]
[312640170,1706122349270,-583.81,0.00050684,31]
[312640171,1706122349280,-1209.52,0.00050684,31]
[312640172,1706122349289,-286.56370387,0.00050684,31]
[312640173,1706122349298,-500.0,0.00050684,31]
[312640174,1706122349311,-500.0,0.00050684,31]
[312640175,1706122349321,-921.04,0.00050684,31]
[312640176,1706122349331,-1294.87,0.00050684,31]
[312640177,1706122349340,-593.18,0.00050684,31]
[312640178,1706122349351,-2304.75,0.00050684,31]
[312640179,1706122349361,-500.0,0.00050684,31]
[312640180,1706122349370,-1239.0,0.00050684,31]
[312640181,1706122349381,-604.69,0.00050684,31]
[312640182,1706122349391,-650.95,0.00050684,31]
[312640183,1706122349401,-1539.95,0.00050684,31]
[312640184,1706122349411,-8834.98,0.00050684,31]
[312640185,1706122349420,-500.0,0.00050684,31]
[312640186,1706122349430,-500.0,0.00050684,31]
[312640187,1706122349440,-547.48,0.00050684,31]
[312640188,1706122349449,-500.0,0.00050684,31]
[312640189,1706122349459,-2142.95,0.00050684,7]
[312640190,1706122349468,-1282.38,0.00050684,31]
[312640191,1706122349479,-966.05,0.00050684,31]
[312640192,1706122349489,-747.91,0.00050684,31]
[312640193,1706122349499,-1871.41,0.00050684,31]
[312640194,1706122349508,-912.87,0.00050684,31]
[312640195,1706122349518,-1116.62,0.00050684,31]
[312640196,1706122349527,-833.57,0.00050684,31]
[312640197,1706122349537,-321.87680771,0.00050684,31]
[312640198,1706122349547,-500.0,0.00050684,31]
[312640199,1706122349556,-1268.63,0.00050684,31]
[312640200,1706122349566,-657.31,0.00050684,31]
[312640201,1706122349575,-646.44,0.00050684,31]
[312640202,1706122349585,-500.0,0.00050684,31]
[312640203,1706122349593,-500.0,0.00050684,31]
[312640204,1706122349603,-731.18,0.00050684,31]
[312640205,1706122349613,-1207.08,0.00050684,31]
[312640206,1706122349622,-1174.69,0.00050684,31]
[312640207,1706122349631,-500.0,0.00050684,31]
[312640208,1706122349641,-2581.31,0.00050684,31]
[312640209,1706122349650,-740.71,0.00050684,31]
[312640210,1706122349660,-1329.41,0.00050684,31]
[312640211,1706122349670,-1378.41,0.00050684,31]
[312640212,1706122349679,-950.0,0.00050684,7]
[312640213,1706122349688,-545.75,0.00050684,31]
[312640214,1706122349698,-500.0,0.00050684,31]
[312640215,1706122349709,-1309.93,0.00050684,31]
[312640216,1706122349719,-500.0,0.00050684,31]
[312640217,1706122349729,-500.0,0.00050684,31]
[312640218,1706122349738,-973.63,0.00050684,31]
[312640219,1706122349747,-500.0,0.00050684,31]
[312640220,1706122349756,-500.0,0.00050684,31]
[312640221,1706122349766,-1370.14,0.00050684,31]
[312640222,1706122349775,-500.0,0.00050684,31]
[312640223,1706122349785,-500.0,0.00050684,31]
[312640224,1706122349794,-500.0,0.00050684,31]
[312640225,1706122349805,-500.0,0.00050684,31]
[312640226,1706122349815,-625.5,0.00050684,31]
[312640227,1706122349825,-561.88,0.00050684,31]
[312640228,1706122349834,-500.0,0.00050684,31]
[312640229,1706122349843,-500.0,0.00050684,31]
[312640230,1706122349854,-500.0,0.00050684,31]
[312640231,1706122349863,-1086.56,0.00050684,31]
[312640232,1706122349873,-1202.1,0.00050684,31]
[312640233,1706122349882,-4191.4,0.00050684,31]
[312640234,1706122349892,-712.36,0.00050684,31]
[312640235,1706122349902,-500.0,0.00050684,31]
[312640236,1706122349911,-1256.89,0.00050684,31]
[312640237,1706122349921,-1151.56,0.00050684,31]
[312640238,1706122349931,-593.19,0.00050684,31]
[312640239,1706122349941,-500.0,0.00050684,31]
[312640240,1706122349950,-1249.41,0.00050684,31]
[312640241,1706122349960,-522.67526247,0.00050684,31]
[312640242,1706122349969,-500.0,0.00050684,31]
[312640243,1706122349978,-500.0,0.00050684,31]
[312640244,1706122349988,-500.0,0.00050684,31]
[312640245,1706122349998,-500.0,0.00050684,31]
[312640246,1706122350008,-500.0,0.00050684,31]
[312640247,1706122350018,-1307.18,0.00050684,31]
[312640248,1706122350027,-500.0,0.00050684,31]
[312640249,1706122350037,-795.62,0.00050684,31]
[312640250,1706122350047,-749.12,0.00050684,31]
[312640251,1706122350056,-696.33,0.00050684,31]
[312640252,1706122350066,-500.0,0.00050684,31]
[312640253,1706122350075,-500.0,0.00050684,14]
[312640254,1706122350085,-500.0,0.00050684,31]
[312640255,1706122350094,-1284.18,0.00050684,31]
[312640256,1706122350104,-652.98,0.00050684,31]
[312640257,1706122350114,-981.53,0.00050684,31]
[312640258,1706122350123,-523.2,0.00050684,31]
[312640259,1706122350133,-648.47,0.00050684,31]
[312640260,1706122350142,-510.01,0.00050684,31]
[312640261,1706122350152,-609.97,0.00050684,31]
[312640262,1706122350162,-668.31,0.00050684,31]
[312640263,1706122350172,-1472.4,0.00050684,31]
[312640264,1706122350181,-982.27,0.00050684,31]
[312640265,1706122350191,-500.0,0.00050684,31]
[312640266,1706122350200,-500.0,0.00050684,31]
[312640267,1706122350210,-500.0,0.00050684,31]
[312640268,1706122350219,-1275.47,0.00050684,20]
[312640269,1706122350229,-975.67,0.00050684,31]
[312640270,1706122350238,-565.63925653,0.00050684,31]
[312640271,1706122350248,-859.46,0.00050684,31]
[312640272,1706122350258,-500.0,0.00050684,31]
[312640273,1706122350267,-2167.45,0.00050684,31]
[312640274,1706122350277,-500.0,0.00050684,31]
[312640275,1706122350286,-500.0,0.00050684,31]
[312640276,1706122350295,-666.0,0.00050684,31]
[312640277,1706122350309,-1089.95,0.00050684,31]
[312640278,1706122350318,-641.64,0.00050684,31]
[312640279,1706122350328,-924.64,0.00050684,31]
[312640280,1706122350339,-500.0,0.00050684,31]
[312640281,1706122350349,-1430.01,0.00050684,31]
[312640282,1706122350358,-536.15,0.00050684,31]
[312640283,1706122350368,-589.35,0.00050684,31]
[312640284,1706122350378,-500.0,0.00050684,31]
[312640285,1706122350387,-6481.22,0.00050684,31]
[312640286,1706122350397,-1129.08,0.00050684,31]
[312640287,1706122350406,-1564.68,0.00050684,31]
[312640288,1706122350415,-944.64,0.00050684,31]
[312640289,1706122350423,-523.63062117,0.00050684,31]
[312640290,1706122350433,-500.0,0.00050684,31]
[312640291,1706122350442,-500.0,0.00050684,31]
[312640292,1706122350451,-500.0,0.00050684,31]
[312640293,1706122350461,-500.0,0.00050684,30]
[312640294,1706122350471,-1816.2,0.00050684,31]
[312640295,1706122350481,-500.0,0.00050684,31]
[312640296,1706122350490,-887.53,0.00050684,31]
[312640297,1706122350500,-1137.33,0.00050684,31]
[312640298,1706122350509,-677.18,0.00050684,31]
[312640299,1706122350518,-1033.79,0.00050684,31]
[312640300,1706122350528,-952.51,0.00050684,31]
[312640301,1706122350538,-750.26,0.00050684,31]
[312640302,1706122350548,-517.35263457,0.00050684,31]
[312640303,1706122350557,-500.0,0.00050684,7]
[312640304,1706122350567,-500.0,0.00050684,31]
[312640305,1706122350577,-500.0,0.00050684,31]
[312640306,1706122350587,-616.97,0.00050684,31]
[312640307,1706122350596,-500.0,0.00050684,31]
[312640308,1706122350606,-1156.88,0.00050684,31]
[312640309,1706122350615,-575.07,0.00050684,31]
[312640310,1706122350624,-500.0,0.00050684,31]
[312640311,1706122350634,-7701.48,0.00050684,15]
[312640312,1706122350643,-500.0,0.00050684,31]
[312640313,1706122350652,-508.6,0.00050684,31]
[312640314,1706122350661,-500.0,0.00050684,31]
[312640315,1706122350671,-571.75,0.00050684,31]
[312640316,1706122350680,-588.05,0.00050684,31]
[312640317,1706122350694,-500.0,0.00050684,31]
[312640318,1706122350703,-828.94,0.00050684,31]
[312640319,1706122350713,-500.0,0.00050684,31]
[312640320,1706122350723,-532.52,0.00050684,31]
[312640321,1706122350733,-500.0,0.00050684,31]
[312640322,1706122350742,-1048.36,0.00050684,31]
[312640323,1706122350751,-596.76453839,0.00050684,31]
[312640324,1706122350761,-732.05,0.00050684,31]
[312640325,1706122350771,-500.0,0.00050684,31]
[312640326,1706122350781,-952.74,0.00050684,31]
[312640327,1706122350790,-1176.12,0.00050684,31]
[312640328,1706122350799,-500.0,0.00050684,31]
[312640329,1706122350808,-1417.3,0.00050684,2]
[312640330,1706122350817,-1220.83,0.00050684,31]
[312640331,1706122350826,-921.3,0.00050684,31]
[312640332,1706122350835,-500.0,0.00050684,31]
[312640333,1706122350844,-5880.03,0.00050684,31]
[312640334,1706122350854,-897.04,0.00050684,31]
[312640335,1706122350863,-1858.89,0.00050684,31]
[312640336,1706122350872,-500.0,0.00050684,31]
[312640337,1706122350884,-500.0,0.00050684,31]
[312640338,1706122350893,-500.0,0.00050684,31]
[312640339,1706122350902,-550.81,0.00050684,31]
[312640340,1706122350912,-500.0,0.00050684,31]
[312640341,1706122350921,-1157.35,0.00050684,31]
[312640342,1706122350931,-889.14,0.00050684,31]
[312640343,1706122350940,-739.19,0.00050684,31]
[312640344,1706122350949,-500.0,0.00050684,31]
[312640345,1706122350958,-1017.77,0.00050684,31]
[312640346,1706122350967,-500.0,0.00050684,31]
[312640347,1706122350976,-899.45,0.00050684,31]
[312640348,1706122350985,-1542.77,0.00050684,31]
[312640349,1706122350995,-1135.37,0.00050684,31]
[312640350,1706122351004,-502.38,0.00050684,31]
[312640351,1706122351014,-1208.25,0.00050684,31]
[312640352,1706122351023,-426.37,0.00050699,2]
[312640353,1706122351034,-150.0,0.00050726,30]
[312640354,1706122351044,-150.0,0.00050727,30]
[312640355,1706122351053,-4154.5542926,0.00050765,2]
[312640356,1706122351063,-150.0,0.00050781,30]
[312640357,1706122351072,-7294.0,0.0005079,2]
[312640358,1706122351082,-150.0,0.00050818,30]
[312640359,1706122351091,-150.0,0.00050835,30]
[312640360,1706122351102,-150.0,0.00050835,30]
[312640361,1706122351111,-7538.0407598,0.00050845,2]
[312640362,1706122351120,-450.0,0.00050847,5]
[312640363,1706122351129,-45025.73,0.0005088,14]
[312640364,1706122351138,-100000.0,0.0005088,15]
[312640365,1706122351147,-100000.0,0.0005088,16]
[312640366,1706122351157,-100000.0,0.0005088,17]
[312640367,1706122351166,-100000.0,0.0005088,18]
[312640368,1706122351176,-100000.0,0.0005088,19]
[312640369,1706122351186,-73263.79555694,0.0005089,14]
[312640370,1706122351196,-15275.0,0.0005089,2]
[312640371,1706122351205,-39616.56387777,0.0005089,2]
[312640372,1706122351215,-150.0,0.0005089,30]
[312640373,1706122351225,-104199.25605833,0.000509,30]
[312640374,1706122351234,-200.0,0.000509,30]
[312640375,1706122351244,-300.0,0.000509,26]
[312640376,1706122351253,-1656.121502,0.000509,26]
[312640377,1706122351262,-150.0,0.00050909,30]
[312640378,1706122351272,-88719.1084992,0.00050923,2]
[312640379,1706122351281,-500.0,0.0005093,20]
[312640380,1706122351293,-150.0,0.00050945,30]
[312640381,1706122351303,-697.53,0.00050958,31]
[312640382,1706122351312,-632.99,0.00050958,31]
[312640383,1706122351321,-8083.51469661,0.00050958,30]
[312640384,1706122351331,-8083.51469661,0.00050958,30]
[312640385,1706122351341,-8083.51469661,0.00050958,30]
[312640386,1706122351350,-8083.51469661,0.00050958,30]
[312640387,1706122351360,-200.0,0.00050958,30]
[312640388,1706122351370,-200.0,0.00050958,30]
[312640389,1706122351381,-200.0,0.00050958,30]
[312640390,1706122351390,-500.0,0.00050958,31]
[312640391,1706122351400,-500.0,0.00050958,31]
[312640392,1706122351409,-500.0,0.00050958,31]
[312640393,1706122351419,-500.0,0.00050958,31]
[312640394,1706122351428,-500.0,0.00050958,31]
[312640395,1706122351437,-513.26,0.00050958,31]
[312640396,1706122351446,-500.0,0.00050958,31]
[312640397,1706122351456,-500.0,0.00050958,31]
[312640398,1706122351465,-532.8,0.00050958,31]
[312640399,1706122351475,-500.0,0.00050958,31]
[312640400,1706122351485,-500.0,0.00050958,31]
[312640401,1706122351495,-500.0,0.00050958,31]
[312640402,1706122351504,-500.0,0.00050958,31]
[312640403,1706122351513,-528.497347,0.00050958,31]
[312640404,1706122351523,-500.0,0.00050958,31]
[312640405,1706122351533,-500.0,0.00050958,31]
[312640406,1706122351542,-944.33,0.00050958,31]
[312640407,1706122351551,-510.31,0.00050958,31]
[312640408,1706122351561,-500.0,0.00050958,31]
[312640409,1706122351570,-500.0,0.00050958,31]
[312640410,1706122351580,-500.0,0.00050958,31]
[312640411,1706122351589,-500.0,0.00050958,31]
[312640412,1706122351599,-500.0,0.00050958,31]
[312640413,1706122351611,-500.0,0.00050958,31]
[312640414,1706122351621,-715.29,0.00050958,31]
[312640415,1706122351631,-500.0,0.00050958,31]
[312640416,1706122351640,-500.0,0.00050958,31]
[312640417,1706122351650,-1227.94,0.00050958,31]
[312640418,1706122351660,-572.94,0.00050958,31]
[312640419,1706122351670,-518.75,0.00050958,31]
[312640420,1706122351679,-500.0,0.00050958,31]
[312640421,1706122351689,-500.0,0.00050958,31]
[312640422,1706122351698,-666.04,0.00050958,31]
[312640423,1706122351708,-500.0,0.00050958,31]
[312640424,1706122351718,-626.84,0.00050958,31]
[312640425,1706122351728,-500.0,0.00050958,31]
[312640426,1706122351739,-557.55,0.00050958,31]
[312640427,1706122351749,-500.0,0.00050958,31]
[312640428,1706122351759,-500.0,0.00050958,31]
[312640429,1706122351768,-500.0,0.00050958,31]
[312640430,1706122351778,-521.21,0.00050958,31]
[312640431,1706122351788,-522.76876501,0.00050958,31]
[312640432,1706122351798,-500.0,0.00050958,31]
[312640433,1706122351807,-500.0,0.00050958,31]
[312640434,1706122351817,-500.0,0.00050958,31]
[312640435,1706122351826,-500.0,0.00050958,31]
[312640436,1706122351836,-522.02,0.00050958,31]
[312640437,1706122351846,-557.31,0.00050958,31]
[312640438,1706122351858,-500.0,0.00050958,31]
[312640439,1706122351867,-500.0,0.00050958,31]
[312640440,1706122351877,-360.05511874,0.00050958,31]
[312640441,1706122351887,-500.0,0.00050958,31]
[312640442,1706122351897,-500.0,0.00050958,31]
[312640443,1706122351907,-542.55702772,0.00050958,31]
[312640444,1706122351916,-500.0,0.00050958,31]
[312640445,1706122351926,-500.0,0.00050958,31]
[312640446,1706122351935,-500.0,0.00050958,31]
[312640447,1706122351945,-500.0,0.00050958,31]
[312640448,1706122351954,-500.0,0.00050958,20]
[312640449,1706122351963,-500.0,0.00050958,31]
[312640450,1706122351973,-666.6,0.00050958,31]
[312640451,1706122351982,-504.07,0.00050958,31]
[312640452,1706122351991,-500.0,0.00050958,31]
[312640453,1706122352001,-500.0,0.00050958,31]
[312640454,1706122352011,-1870.62,0.00050958,2]
[312640455,1706122352020,-500.0,0.00050958,31]
[312640456,1706122352030,-500.0,0.00050958,10]
[312640457,1706122352040,-610.32,0.00050958,31]
[312640458,1706122352049,-636.71,0.00050958,31]
[312640459,1706122352059,-516.63,0.00050958,31]
[312640460,1706122352068,-588.07,0.00050958,31]
[312640461,1706122352080,-565.0,0.00050958,31]
[312640462,1706122352090,-661.88,0.00050958,31]
[312640463,1706122352099,-500.0,0.00050958,31]
[312640464,1706122352109,-670.77,0.00050958,31]
[312640465,1706122352118,-500.0,0.00050958,31]
[312640466,1706122352128,-500.0,0.00050958,31]
[312640467,1706122352138,-500.0,0.00050958,31]
[312640468,1706122352147,-500.0,0.00050958,31]
[312640469,1706122352158,-500.0,0.00050958,31]
[312640470,1706122352168,-500.0,0.00050958,31]
[312640471,1706122352177,-500.0,0.00050958,31]
[312640472,1706122352187,-500.0,0.00050958,31]
[312640473,1706122352197,-500.0,0.00050958,31]
[312640474,1706122352208,-588.69,0.00050958,31]
[312640475,1706122352218,-500.0,0.00050958,31]
[312640476,1706122352228,-500.0,0.00050958,31]
[312640477,1706122352237,-500.0,0.00050958,31]
[312640478,1706122352247,-500.0,0.00050958,31]
[312640479,1706122352256,-500.0,0.00050958,31]
[312640480,1706122352266,-500.0,0.00050958,31]
[312640481,1706122352276,-500.0,0.00050958,31]
[312640482,1706122352285,-500.0,0.00050958,31]
[312640483,1706122352295,-505.02,0.00050958,31]
[312640484,1706122352307,-536.31628783,0.00050958,31]
[312640485,1706122352317,-500.0,0.00050958,31]
[312640486,1706122352327,-340.15923354,0.00050958,31]
[312640487,1706122352337,-500.0,0.00050958,31]
[312640488,1706122352347,-500.0,0.00050958,31]
[312640489,1706122352359,-500.0,0.00050958,31]
[312640490,1706122352369,-500.0,0.00050958,31]
[312640491,1706122352380,-500.0,0.00050958,31]
[312640492,1706122352390,-437.12383941,0.00050958,31]
[312640493,1706122352399,-598.88,0.00050958,31]
[312640494,1706122352408,-610.34,0.00050958,31]
[312640495,1706122352417,-316.35054484,0.00050958,31]
[312640496,1706122352428,-500.0,0.00050958,31]
[312640497,1706122352437,-500.0,0.00050958,31]
[312640498,1706122352447,-500.0,0.00050958,31]
[312640499,1706122352457,-410.16922733,0.00050958,31]
[312640500,1706122352467,-500.0,0.00050958,31]
[312640501,1706122352477,-500.0,0.00050958,31]
[312640502,1706122352487,-500.0,0.00050958,31]
[312640503,1706122352499,-500.0,0.00050958,31]
[312640504,1706122352510,-500.0,0.00050958,31]
[312640505,1706122352520,-500.0,0.00050958,31]
[312640506,1706122352531,-840.37,0.00050958,31]
[312640507,1706122352541,-500.0,0.00050958,31]
[312640508,1706122352551,-576.14,0.00050958,31]
[312640509,1706122352563,-586.38302399,0.00050958,31]
[312640510,1706122352573,-265.10546841,0.00050958,31]
[312640511,1706122352583,-500.0,0.00050958,31]
[312640512,1706122352593,-614.84,0.00050958,31]
[312640513,1706122352602,-485.54456753,0.00050958,31]
[312640514,1706122352612,-500.0,0.00050958,31]
[312640515,1706122352622,-500.0,0.00050958,31]
[312640516,1706122352632,-500.0,0.00050958,31]
[312640517,1706122352642,-500.0,0.00050958,31]
[312640518,1706122352652,-699.16,0.00050958,31]
[312640519,1706122352662,-602.98,0.00050958,31]
[312640520,1706122352671,-500.0,0.00050958,31]
[312640521,1706122352681,-500.0,0.00050958,31]
[312640522,1706122352690,-1209.78,0.00050958,31]
[312640523,1706122352700,-500.0,0.00050958,31]